Workbook

Sheet Cover Page
D1: Add company logo
N2: Version 22.2
B8: Add photo
N13: Notes:
N14: This template may require adjustments by individual operators to meet specific reporting requirements as defined in the site Permit(s)
B29: Annual Performance Report 2022
B31: Permit EPR/BK0825UI
B33: Riverside Resource Recovery Facility
B37: Cory
B39: Year: | C39: 2022
B41: Address: | C41: Norman Road, Belvedere, Bexley, DA17 6JY
B43: Tel: | C43: 0208 320 3310
B45: Email: | C45: enquiries@corygroup.co.uk
B47: Prepared by: | C47: G. Jack | F47: Position: | G47: Process Engineer
B49: Approved by: | C49: S. Taynton | F49: Position: | G49: Operations Manager
B51: Version: | C51: 1
B53: Issue Date: | C53: 2023-01-15

Sheet Contents
A1: =+'Cover Page'!$B$29 -> Annual Performance Report 2022 | E1: =+'Cover Page'!$B$33 -> Riverside Resource Recovery Facility
A3: Contents | K3: Notes:
A4: Section | B4: Subject | H4: Page | K4: Section references and Page nos. to be inserted
B5: Facility Information | H5: 3 | K5: Sections and Subjects may require adjustment by individual operators to meet specific reporting requirements as defined in the sites Permit(s)
B6: Operational Summary | H6: 4
B7: Operational Data | H7: 5
B8: Performance Form 1 | H8: 6
B9: Energy Form 1 | H9: 7
B10: Permit Compliance | H10: 8
B11: Improvements | H11: 9
B12: Public Liasion | H12: 10
B13: Residue Quality - Optional | H13: 11
B14: Carbon Dioxide Emissions | H14: 12
B15: Emissions to Water | H15: 13
B16: Emissions to Air (periodically monitored) | H16: 14
B17: Emissions to Air (continuously monitored) | H17: 15
B18: Hydrogen Chloride emissions | H18: 16
B19: Sulphur Dioxdie emsissions | H19: 17
B20: Oxides of Notrigen emissions | H20: 18
B21: Total Organic Carbon emissions | H21: 19
B22: Carbon Monoxide emissions | H22: 20
B23: Ammonia emissions | H23: 21
A26: Version Control
A27: Section | B27: Information | H27: Date
A34: Distribution
A35: Copy | B35: Name, Role | H35: No.
A36: 1 | B36: John Tollervey, Environment Agency Installations Officer
A37: 1 | B37: Dougie Sutherland, CEO
A38: 1 | B38: Mark Greenwood, Director Health, Safety, Environment & Quality Assurance
A39: 1 | B39: David Crawford, Plant Manager
A44: This report is required under the Industrial Emissions Directive’s Article 55(2) requirements on reporting and public information on waste incineration plants and co-incineration plants, which require the operator to produce an annual report on the functioning and monitoring of the plant and make it available to the public.

Sheet Facility Info
A1: =+'Cover Page'!$B$29 -> Annual Performance Report 2022 | E1: =+'Cover Page'!$B$33 -> Riverside Resource Recovery Facility
A3: Plant Description and Design | K3: Notes:
A5: The Riverside Resource Recovery Energy from "The Riverside Resource Recovery Energy from Waste facility at Belvedere in the London Borough of Bexley, uses the waste that would otherwise have gone to landfill as feedstock to generate electricity. As one of the largest operations of its kind in the UK, the facility generates c.580,000 MWh of electricity each year from processing up to 850,000 tonnes of waste through its three operating combustion lines. What’s more, we use the River Thames as a green highway to move the waste from the city to the facility on our fleet of tugs and barges, removing around 100,000 truck movements a year off our capital’s congested roads. By generating electricity from domestic and commercial residual waste, after recycling, we are improving resource efficiency, avoiding London’s use on landfill, and achieving greater sustainability as part of London’s circular economy. With the Riverside Resource Recovery facility continuing to be fully operational, the Environment Agency has renewed the facility R1 certification; this means that the facility is classified as a recovery operation. The facility is permitted to process 850,000 tonnes of waste from across London and exports up to 610,000 Mega Watt hours of electricity to the National Grid. | K5: Include summary of plant design, design capacity, no. of combustion lines, electrical and heat capacity and any other general information that descibes the facility, its location and purpose
A20: Summary of Operational Processes and Procedures
A22: The Riverside Energy from Waste facility is a 24/7 operation which is operated from a continuously manned control room. The control room operator shall ensure that the site’s operations are performed to the facility design and to the strict requirements of the environmental permit. | K22: Include summary of key processes and procedures such as (but not limited to); waste reception, control rooms, grate, bed and bolier, energy & heat generation, cooling systems, residue management, emission controls, health and safety systems, maintenance
A25: The river operations are a key aspect of the process for Riverside, with over 85% of the waste being brought to the plant on barges along the River Thames. From the jetty, the waste containers are removed from the barges and are transported using dock tractors into the site tipping hall.
A28: In the tipping hall the waste is tipped into one of 12 tipping bays. Each bay has a hydraulically operated door designed to minimise noise and odour during tipping. Lights on each tipping bay indicate to the drivers of the vehicles which bay is available to receive waste. The tipping bays open into a waste bunker 30m deep, 61m long and 16m wide. It can hold up to circa. 10,000 tonnes of waste, enough to fuel the plant at full capacity for five days.
A33: The plant runs three combustion lines. The waste cranes feed each combustion line ensuring that the boilers have the required feedstock for 24 hour operation. The waste travels down the feed chutes and onto a horizontal feeder table where hydraulically operated ram feeders push the waste onto the moving grate. The grate is made up of alternate rows of fixed and moving cast steel bars that are arranged on a slope. The forward movement of these bars tumbles the waste slowly down the burning waste bed.
A38: Primary heated combustion air is drawn from above the waste bunker and fed into the waste bed through orificies in each grate bar. This process dries the waste and provides the correct amount of air to allow good combustion of the waste. Secondary swirling air is introduced above the grate. This ensures that the gases given off by the burning waste are thoroughly mixed, resulting in a fully optimised combustion process and lower levels of toxicity in the gases leaving the combustion chamber. Ammonia is injected into the flue gas to reduce the level of Oxides of Nitrogen.
A44: The resulting sub-product, from processing the waste, is known as Incinerator Bottom Ash (IBA) and this falls from the end of the grate into a quench bath. The IBA is collected in an ash bunker and loaded into containers by cranes and hoppers. Any oversized metal is removed and recycled and the remainder is transported on the river (circa 200,000 tonnes per annum) to our partner plant at Tilbury Docks for processing and recycling into aggregate that is primarily used within the construction industry.
A49: The energy from the flue gases is utilised to convert water into steam via the steam drum. The steam is then further super-heated and drives the turbine/generator, producing electricity which is used to power the facility and exported to the National Grid.
A52: Flue gases leave the boiler and pass through a reactor tower where hydrated lime, powdered activated carbon and water are injected into the swirling gas flow. These neutralise acids and capture heavy metals.
A54: Gases from the reactor tower are then drawn into the fabric filter baghouse. The clean gases pass through the filters and the Air Pollution Control residue (APCr) collects on the outer surface of the bags. The APCr is collected in silos.
A57: Flue Gas is drawn through the entire process by Induced Draft Fans. The clean hot gas from the Fabric Filter is passed through a heat exchanger that heats feed water to provide an efficient process. Cooled gas is emitted via an 85 metre stack where it is discharged into atmosphere. Continuous Emissions Monitoring (CEMS) equipment continually records emissions to air.
A61: The plant operates within a Health, Safety, Environmental and Quality Integrated Management System which is compliant with ISO 45001, ISO 14001 and ISO 9001 and is independently audited.

Sheet Operational Summary
A1: =+'Cover Page'!$B$29 -> Annual Performance Report 2022 | E1: =+'Cover Page'!$B$33 -> Riverside Resource Recovery Facility
A3: Summary of Plant Operations and Maintenance during the reporting year | K3: Notes:
A5: Planned Plant Shutdowns: During 2022, each of the three boilers have undergone major inspections together with a common plant outage which was undertaken in July of 2022. The major inspection scope of works included Grate Maintenance and rectification of defects, refractory refurbishment, Boiler cleaning and Fabric filter maintenance. The driver for the common outage is to perform the required inspections under the Pressure Systems Safety Regulations 2000 (PSSR) all items registered on the written scheme were inspected, tested, and witnessed by our competent body. 2022 improvements as follows: The Boiler improvement project continued, now being in the 2nd year of the 3-year project to replace refractory tiles with Alloy 625 weld overlay. The modification provides benefits in condition monitoring as well as reducing the temperature of the flue gas around the superheater stages, thus reducing corrosion in the long term. Two thirds of each lines furnace have now been completed. Line 2 Fabric bags were fully changed out as part of the maintenance strategy for the Bag House. The 10-year LV board maintenance and testing was completed with no issues found. Stack gas flow monitors have been replaced, and the automation of the QAL3 calibrations has also been implemented on the CEMS equipment. | K5: Include summary of key operational and/or mainteanance activity undertaken in the year, such as any major component upgrades and/or replacements
A29: Summary of Residue Handling for the reporting year
A31: 100% of the Incinerator Bottom Ash and Recovered Metals were transported via the River Thames to Blue Phoenix Ltd at their premises at Tilbury Docks. The Air Pollution Control residue (APCr) was sent to three main destinations throughout 2022: 1) OCO Ltd at Brandon, Suffolk where it was treated by Accelerated Carbonation Technology (ACT) to produce a stabilised product that is used as a component of breeze blocks. 2) Veolia Minosis in Cheshire where the APCr is stored in an underground storage facility within the Winsford salt mine. The unique geology in this area of Cheshire creates an impermeable cavity which is ideal for the storage of APCr. 3) Augean's in East Northants Resource Management Facility (ENRMF) is based at Kings Cliffe near Peterborough which operates and is monitored under strict EPR permits to ensure full compliance with all current legislation. | K31: Include in here a summary of residue handling regimes and destinations

Sheet Operational Data
A1: =+'Cover Page'!$B$29 -> Annual Performance Report 2022 | E1: =+'Cover Page'!$B$33 -> Riverside Resource Recovery Facility
A3: Operational Data | K3: Notes:
A4: Plant Size | B4: 850000 | D4: tonnes pa | E4: 270 | F4: MWth | G4: 85 | H4: MWe | K4: * - RDF to include SRF
A5: No. of combustion lines | B5: 3 | D5: No. of Turbines: | F5: 1 | K5: ** - CHP plants only
K6: 2020 updates include; heat in MWh, water in Litres, NCV in MJ/kg
A7: Waste types received | B7: Unit | C7: Q1 | D7: Q2 | E7: Q3 | F7: Q4 | G7: Year Total | H7: %
A8: Household / Local Authority | B8: tonnes | C8: 100057.62 | D8: 103026.36 | E8: 103154.15 | F8: 103947.08 | G8: =SUM(C8:F8) -> 410185.21 | H8: =IF(G8>0,G8/$G$18,"-") -> 0.5109513771 | K8: Availabiity Definition: 'the availability of a line is to be calculated by the number of hours the line reported Continuously Monitored emission levels to the Regulator through the calendar year divided by the total number of hours in that year. The overall plant availability is calculated as the Mean of all lines in the plant. For clarity this includes periods of Other Than Normal Operating Conditions (OTNOC) and abnormal operation.' Rationale: The primary function of an Energy from Waste facility is the disposal of waste. It follows therefore that the availability of a plant is determined by the period of time a facility spends undertaking this activity.
A9: Commercial & Industrial | C9: 109193.63 | D9: 88958.53 | E9: 99221.32 | F9: 95228.48 | G9: =SUM(C9:F9) -> 392601.96 | H9: 0.4890486229
A10: Hazardous | G10: 0 | H10: -
A11: Clinical | G11: 0 | H11: -
A12: Waste wood (biomass) | G12: 0 | H12: -
A13: Refuse Derived Fuel * - H'hold/LA | G13: =SUM(C13:F13) -> 0 | H13: -
A14: Refuse Derived Fuel * - C&I | G14: =SUM(C14:F14) -> 0 | H14: -
A15: River Storage annual start/end | C15: 485 | F15: 237 | G15: =SUM(C15-F15) -> 248 | H15: 0.0003089237213
A16: Other [Please specify]
A17: Other [Please specify]
A18: Total waste received | C18: =SUM(C8:C17) -> 209736.25 | D18: =SUM(D8:D17) -> 191984.89 | E18: =SUM(E8:E17) -> 202375.47 | F18: =SUM(F8:F17) -> 199412.56 | G18: =SUM(G8:G9) -> 802787.17 | H18: 1
A19: Rejected Waste | G19: =SUM(C19:F19) -> 0 | H19: =IF(G19>0,G19/$G$18,"-") -> -
A20: Unprocessed waste transferred out | D20: 9967.1 | E20: 6762.52 | F20: 790.68 | G20: =SUM(C20:F20) -> 17520.3 | H20: =IF(G20>0,G20/$G$18,"-") -> 0.02182433982
A21: Storage bunker annual start/end balance | C21: 10780 | F21: 7000 | G21: =SUM(F21-C21) -> -3780
A22: Total waste combusted | C22: =C18-SUM(C19:C20) -> 209736.25 | D22: =D18-SUM(D19:D20) -> 182017.79 | E22: =E18-SUM(E19:E20) -> 195612.95 | F22: =F18-SUM(F19:F20) -> 198621.88 | G22: =SUM(G18-G20)-G21+G15 -> 789294.87 | H22: =IF(G22>0,G22/$G$18,"-") -> 0.9831931793
A24: Energy Useage / Export | B24: Unit | C24: Q1 | D24: Q2 | E24: Q3 | F24: Q4 | G24: Year Total | H24: KWh/te
A25: Power Generated | B25: MWh | C25: 170745.51 | D25: 141622.7 | E25: 153396.76 | F25: 163612 | G25: =SUM(C25:F25) -> 629376.97 | H25: =IF(G25>0,G25*1000/$G$22,"-") -> 797.3914362
A26: Power Exported | C26: 154096.89 | D26: 126445 | E26: 137429 | F26: 146969.7 | G26: =SUM(C26:F26) -> 564940.59 | H26: =IF(G26>0,G26*1000/$G$22,"-") -> 715.7535307
A27: Power Used on site | C27: =SUM(C25-C26) -> 16648.62 | D27: =SUM(D25-D26) -> 15177.7 | E27: 15967.76 | F27: 16642.3 | G27: =SUM(C27:F27) -> 64436.38 | H27: =IF(G27>0,G27*1000/$G$22,"-") -> 81.63790549
A28: Power Imported | D28: 28.51 | E28: 203.37 | F28: 66.9 | G28: 298.78 | H28: =IF(G28>0,G28*1000/$G$22,"-") -> 0.3785404053
A29: Parasitic Load | B29: % | C29: =IF(C25>0,1-C26/(C25+C28),"-") -> 0.09750546295 | D29: =IF(D25>0,1-D26/(D25+D28),"-") -> 0.1073496654 | E29: =IF(E25>0,1-E26/(E25+E28),"-") -> 0.1052807052 | F29: =IF(F25>0,1-F26/(F25+F28),"-") -> 0.1020852413 | G29: =IF(G25>0,1-G26/(G25+G28),"-") -> 0.1028071353
A30: Thermal Energy Produced ** | B30: MWh | G30: =SUM(C30:F30) -> 0 | H30: =IF(G30>0,G30*1000/$G$22,"-") -> -
A31: Thermal Energy Exported ** | G31: 0 | H31: =IF(G31>0,G31*1000/$G$22,"-") -> -
A32: R1 value (if applicable) | H32: 0.77
A34: Waste Disposal & Recovery | B34: Unit | C34: Q1 | D34: Q2 | E34: Q3 | F34: Q4 | G34: Year Total | H34: % inputs
A35: APC Residues - produced | B35: tonnes | C35: 4529.36 | D35: 4134.88 | E35: 4345.86 | F35: 4591.52 | G35: =SUM(C35:F35) -> 17601.62 | H35: =IF(G35>0,G35/$G$22,"-") -> 0.02230043634
A36: IBA - produced | C36: 43393.68 | D36: 39593.41 | E36: 41674.42 | F36: 44399.15 | G36: 169060.66 | H36: =IF(G36>0,G36/$G$22,"-") -> 0.2141920167
A37: Metals recycling | C37: 167.04 | D37: 145.78 | E37: 158.2 | F37: 192.12 | G37: =SUM(C37:F37) -> 663.14 | H37: 0.0008401676296
A38: Other | C38: 0 | D38: 0 | E38: 0 | F38: 0 | G38: =SUM(C38:F38) -> 0 | H38: -
A39: Other | C39: 0 | D39: 0 | E39: 0 | F39: 0 | G39: 0 | H39: -
A40: Other | C40: 0 | D40: 0 | E40: 0 | F40: 0 | G40: 0 | H40: -
A42: Raw Material Usage | B42: Unit | C42: Q1 | D42: Q2 | E42: Q3 | F42: Q4 | G42: Year Total | H42: kg or Ltr /te
A43: Mains Water | B43: ltrs | C43: 20360000 | D43: 45040000 | E43: 37800000 | F43: 33860000 | G43: =SUM(C43:F43) -> 137060000 | H43: =IF(G43>0,G43/$G$22,"-") -> 173.6486644
A44: Other Water | B44: ltrs | G44: 0 | H44: =IF(G44>0,G44/$G$22,"-") -> -
A45: Ammonia | B45: ltrs | C45: 98235.62 | D45: 68892.32 | E45: 104670.86 | F45: 125379.1 | G45: 397177.9 | H45: 0.5032059818
A46: Urea | B46: kgs | G46: =SUM(C46:F46) -> 0 | H46: -
A47: Activated Carbon | B47: kgs | C47: 104860 | D47: 104460 | E47: 102740 | F47: 113820 | G47: 425880 | H47: 0.5395702116
A48: Hydrated lime | B48: kgs | C48: 2034840 | D48: 1765360 | E48: 1837340 | F48: 1797640 | G48: 7435180 | H48: 9.420028284
A49: Fuel oil | B49: ltrs | C49: 215311.45 | D49: 413488.05 | E49: 332444.05 | F49: 291704.75 | G49: 1252948.3 | H49: 1.587427396
A50: Gas | B50: cf | C50: 0 | D50: 0 | E50: 0 | F50: 0 | G50: 0
A51: Other | C51: 0 | D51: 0 | E51: 0 | F51: 0 | G51: 0
A53: Summary | B53: Line/Unit | C53: Q1 | D53: Q2 | E53: Q3 | F53: Q4 | G53: Year Total | J53: Hrs in year
A54: Availability of waste combustion by line, hrs | B54: 1 | C54: 1986 | D54: 2057 | E54: 1701 | F54: 1840 | G54: =SUM(C54:F54) -> 7584 | H54: 0.87 | J54: 8760
B55: 2 | C55: 2152 | D55: 1728 | E55: 2005.5 | F55: 2201 | G55: 8086.5 | H55: 0.92
B56: 3 | C56: 2119 | D56: 1635 | E56: 2093 | F56: 2096 | G56: 7943 | H56: 0.91
A57: Overall Availability, mean avg. of all lines, hrs | C57: 2086 | D57: 1808 | E57: 1937 | F57: 2057 | G57: =AVERAGE(G54:G56) -> 7871.166667 | H57: 0.9
A58: Hours of turbine operations, hrs | B58: 1 | C58: 2160 | D58: 2181 | E58: 2093 | F58: 2196 | G58: 8630 | H58: 0.985
A59: Hours of heat / steam export | C59: 0 | D59: 0 | E59: 0 | F59: 0 | G59: 0 | H59: =IF(B59>0,#REF!/J54,"n/a") -> n/a
A60: Net Calorific Value of waste | B60: MJ/kg | C60: 9.57 | D60: 9.45 | E60: 9.66 | F60: 9.45 | G60: =SUM(C60:F60)/4 -> 9.5325 | H60: -
A61: Abnormal Events | B61: qty. | C61: 0 | D61: 0 | E61: 0 | F61: 0 | G61: 0 | H61: =IF(G61>0,"yes","no") -> no
A62: Abnormal operation | B62: hours | C62: 0 | D62: 0 | E62: 0 | F62: 0 | G62: 0 | H62: =+(G62)/J54 -> 0
A63: Permit Breaches | B63: qty. | C63: 0 | D63: 0 | E63: 0 | F63: 0 | G63: 0 | H63: =IF(G63>0,"yes","no") -> no

Sheet Perf. Form 1
A1: =+'Cover Page'!C39 -> 2022 | B1: Annual Reporting Performance Form 1
A3: =+'Cover Page'!B31 -> Permit EPR/BK0825UI | F3: Operator: | G3: Cory
A4: Facility: | B4: Riverside Resource Recovery Facility | F4: Form: | G4: Performance 1
A6: Reporting Period from: | D6: 2022-01-01 | F6: to: | G6: 2022-12-31
A8: =+A1 -> 2022 | B8: Annual Reporting of Waste Disposal and Recovery
A9: Waste Description | C9: Disposal Route(s) | E9: Disposal Tonnes | G9: Recovery Tonnes | I9: % / tonne of waste incinerated
A10: 1) Hazardous Wastes
A11: APC Residues | C11: R05, D05 | E11: 7479.12 | G11: 10139.54 | I11: =IF((E11+G11)>0,(E11+G11)/'Operational Data'!$G$22, "-") -> 0.02232202523
A12: IBA | I12: =IF((E12+G12)>0,(E12+G12)/'Operational Data'!$G$22, "-") -> -
I13: =IF((E13+G13)>0,(E13+G13)/'Operational Data'!$G$22, "-") -> -
I14: =IF((E14+G14)>0,(E14+G14)/'Operational Data'!$G$22, "-") -> -
A15: Total Hazardous Waste | E15: =SUM(E11:F14) -> 7479.12 | G15: =SUM(G11:H14) -> 10139.54 | I15: =IF((E15+G15)>0,(E15+G15)/'Operational Data'!$G$22, "-") -> 0.02232202523
A17: 2) Non-Hazardous Wastes
A18: IBA | C18: R04 | G18: 169612.66 | I18: =IF((E18+G18)>0,(E18+G18)/'Operational Data'!$G$22, "-") -> 0.2148913751
A19: Ferrous Metal | I19: =IF((E19+G19)>0,(E19+G19)/'Operational Data'!$G$22, "-") -> -
A20: Process Water | I20: =IF((E20+G20)>0,(E20+G20)/'Operational Data'!$G$22, "-") -> -
I21: =IF((E21+G21)>0,(E21+G21)/'Operational Data'!$G$22, "-") -> -
I22: =IF((E22+G22)>0,(E22+G22)/'Operational Data'!$G$22, "-") -> -
A23: Total Non-Hazardous Waste | E23: =SUM(E18:F22) -> 0 | G23: =SUM(G18:H22) -> 169612.66 | I23: =IF((E23+G23)>0,(E23+G23)/'Operational Data'!$G$22, "-") -> 0.2148913751
A24: TOTAL WASTE | E24: =+E23+E15 -> 7479.12 | G24: =+G23+G15 -> 179752.2 | I24: =IF((E24+G24)>0,(E24+G24)/'Operational Data'!$G$22, "-") -> 0.2372134004
A26: Operator’s comments :
A31: =+A1 -> 2022 | B31: Annual Reporting of Water and Other Raw Material Usage
A32: Raw Material | E32: Usage | G32: Unit | H32: Specific Useage | J32: Unit
A33: Mains Water | E33: 137060 | G33: m3 | H33: =IF(E33>0,E33/'Operational Data'!$G$22,"-") -> 0.1736486644 | J33: m3/te
A34: Total Water | E34: 137060 | G34: m3 | H34: =IF(E34>0,E34/'Operational Data'!$G$22,"-") -> 0.1736486644 | J34: m3/te
A35: Urea / Ammonia | E35: 397180 | G35: kg | H35: =IF(E35>0,E35/'Operational Data'!$G$22,"-") -> 0.5032086424 | J35: kg/te
A36: Activated Carbon | E36: 425880 | G36: kg | H36: =IF(E36>0,E36/'Operational Data'!$G$22,"-") -> 0.5395702116 | J36: kg/te
A37: Lime / hydrated lime / Sodium Bicarb. | E37: 7435180 | G37: kg | H37: =IF(E37>0,E37/'Operational Data'!$G$22,"-") -> 9.420028284 | J37: kg/te
A39: Operator’s comments :
A43: =+A31 -> 2022 | B43: Annual Reporting of other performance indicators
A44: Parameter | C44: Results by Line
C45: A1 | D45: A2 | E45: A3 | F45: A4 | G45: A5 | I45: Turbine 1 | J45: Turbine 2
A46: Operating hours for the year, hours | C46: 7624 | D46: 8088.5 | E46: 7949.5
A47: Number of periods of abnormal operation, qty. | C47: 0 | D47: 0 | E47: 0
A48: Cumulative hours of abnormal operation for this year, hours | C48: 0 | D48: 0 | E48: 0
A50: Operator’s comments :
A54: Signed: | G54: Date:

Sheet Energy Form 1
A1: =+'Cover Page'!C39 -> 2022 | B1: Annual Reporting of Energy Usage/Export
A3: =+'Cover Page'!B31 -> Permit EPR/BK0825UI | F3: Operator: | G3: Cory
A5: Facility: | B5: =+'Cover Page'!B33:I33 -> Riverside Resource Recovery Facility | F5: Form: | G5: Energy 1
A7: Reporting Period from: | D7: =+'Perf. Form 1'!D6:E6 -> 2022-01-01 | F7: to: | G7: =+'Perf. Form 1'!G6:H6 -> 2022-12-31
A9: Energy Source | D9: Energy Usage | F9: Unit | G9: Specific Useage (KWh/tonne incinerated
A10: Electricity Produced | D10: 629443 | F10: MWh | G10: =+'Operational Data'!H25 -> 797.3914362
A11: Electricity Imported | D11: 298.78 | F11: MWh | G11: =+'Operational Data'!H28 -> 0.3785404053
A12: Electricity Exported | D12: 564940.7 | F12: MWh | G12: =+'Operational Data'!H26 -> 715.7535307
A13: Gas Oil | D13: 1087.5 | F13: tonnes
A14: Steam/hot water exported | D14: =+'Operational Data'!G31 -> 0 | F14: GWh | G14: =+'Operational Data'!H31 -> -
A18: Operator’s comments :
A29: Signed: | G29: Date:

Sheet Permit Compliance
A1: =+'Cover Page'!$B$29 -> Annual Performance Report 2022 | E1: =+'Cover Page'!$B$33 -> Riverside Resource Recovery Facility
A3: Summary of Permit Compliance
A5: Compliance with permit limits for continuously monitored pollutants
A7: The plant met its emission limits as shown in the table below:
A8: Substance | C8: Percentage time compliant during operation | L8: Notes:
C9: Half-hourly limit | F9: Daily limit | L9: Report to 2 decimal places, i.e. xx.xx% Please provide a brief summary of each notification or non-compliance in the table (rather than just referring to notifications that were sent to the Regulator).
A10: Particulates | C10: 1 | F10: 1
A11: Oxides of nitrogen | C11: 1 | F11: 1
A12: Sulphur dioxide | C12: 1 | F12: 1
A13: Carbon monoxide | C13: 100% 95% of 10-min averages | F13: 1
A14: Total organic carbon | C14: 1 | F14: 1
A15: Hydrogen chloride | C15: 1 | F15: 1
A19: Summary of any notifications or non-compliances under the permit
A20: Date | B20: Summary of notification or non-compliance [including Line/Reference] | E20: Reason | H20: Measures taken to prevent reoccurrence
A27: Summary of any complaints received and actions to taken to resolve them.
A28: Date | B28: Summary of complaint [including Line/Reference] | E28: Reason * | H28: Measures taken to prevent reoccurrence
E34: * including whether substantiated by the operator or the EA

Sheet Improvements
A1: =+'Cover Page'!$B$29 -> Annual Performance Report 2022 | E1: =+'Cover Page'!$B$33 -> Riverside Resource Recovery Facility
A3: Summary of Plant Improvements
A5: Summary of any efficiency improvements that have been completed within the year.
A16: Summary of any permit improvement conditions that have been completed within the year and the resulting environmental benefits.
A27: Summary of any changes to the plant or operating techniques which required a variation to the permit and a summary of the resulting environmental impact.
A38: Summary of any other improvements made to the plant or planned to be made and a summary of the resulting environmental benefits.

Sheet Public Liasion
A1: =+'Cover Page'!$B$29 -> Annual Performance Report 2022 | E1: =+'Cover Page'!$B$33 -> Riverside Resource Recovery Facility
A3: Details of Public & Stakeholder Liasion
A5: Summary of events held during the reporting year.
A6: Date | C6: Description
A7: 10th February | C7: Reading University Environmental Management Students - Presentation & Site Tour
A9: 25th - 29th October | C9: School/Collge Work Experience event.
A16: List of events planned for next year
A17: Date | C17: Description
A18: 1st March | C18: Reading University Environmental Management Students - Presentation & Site Tour
A29: If you wish to be involved in the public liasion programme, please contact _________________

Sheet CO2 N20
A1: =+'Cover Page'!$B$29 -> Annual Performance Report 2022 | C1: =+'Cover Page'!$B$33 -> Riverside Resource Recovery Facility
A3: Carbon dioxide emissions and biogenic content of waste inputs | E3: Notes:
A5: Carbon dioxide emissions (all types of plant)
A6: Annual mass of carbon dioxide released | B6: x tonnes | C6: 829221
A7: Annual mass of carbon dioxide released per tonne of waste burned | B7: x tonnes | C7: 1.05
A8: Annual mass of carbon dioxide released per MWh of energy exported | B8: x tonnes | C8: 1.47
A9: Description of how annual carbon dioxide mass emission has been calculated | B9: Where available, data from CO2 CEMS should be used; otherwise, a suitable emissions factor should be used based on the tonnage of waste burned e.g.0.992 tCO2/t waste as per Tolvik report 2021, or other justified emissions factor - refer to adjacent Environment Agency guidance note or updated version for example descriptive text.
A11: Nitrous oxide emissions (only plants which use ammonia or urea to abate NOx emissions)
A12: Total annual mass emissions of nitrous oxide | B12: x tonnes | C12: 0.65
A13: Description of how annual nitrous oxide mass emission has been calculated | B13: Where available, data from N2O CEMS or periodic monitoring data should be used; otherwise, a suitable emissions factor should be used based on the tonnage of waste burned e.g. 0.0981 kgN20/t waste as per 2021 Pollution Inventory data for plants with urea-based SNCR - refer to adjacent Environment Agency guidance note or updated version for example descriptive text.
A14: Total annual carbon dioxide and nitrous oxide emissions as carbon dioxide equivalent (whereby 1 kg nitrous oxide is equivalent to 298 t carbon dioxide) | B14: x tonnes CO2e
A16: Biogenic fraction of the waste and biogenic CO2 emissions (only plants burning residual municipal waste, refuse derived fuel or solid recovered fuel)
A17: Yearly average biogenic percentage of the waste by mass | B17: 0.4846
A18: Description of how biogenic percentage has been calculated | B18: Where available, data from waste sampling should be used; otherwise, an estimated figure with justification can be used, or a figure assumed on the basis of a national average e.g. 2017 WRAP data for residual waste of 51.8% biogenic energy content - refer to adjacent Environment Agency guidance note or updated version for example descriptive text.
A19: Percentage of total carbon dioxide emissions arising from biogenic waste | B19: x %
A20: Description of how percentage biogenic carbon dioxide emissions have been calculated | B20: Examples include direct measurement via C14 method, BIOMA software or other method based on measured or assumed waste biogenic content - refer to adjacent Environment Agency guidance note or updated version for example descriptive text.
A22: Comments:

Sheet Residue Quality
A1: =+'Cover Page'!$B$29 -> Annual Performance Report 2022 | E1: =+'Cover Page'!$B$33 -> Riverside Resource Recovery Facility
A3: Residue Quality Monitoring Requirements
A5: Summary of monitoring undertaken and compliance
A6: In 2022, the Incinerator Bottom of Ash, of each line, was tested monthly for Total Organic Carbon (TOC) & Quarterly for Heavy Metals suite, Dioxins/Furans and Dioxin-like PCBs in line with the site permit requirements.
A8: In 2022, The Air Pollution Control residue (APCr) was tested for Heavy Metals suite, Dioxins/Furans and Dioxin-like PCBs in line with the site permit requirements.
A10: In 2022, the facility continued to adopt the the ESA Sampling & Testing Protocol to Assess the Status of Incinerator Bottom Ash, for the hazard assessment of IBA. The IBA remained classified as non-hazardous throughout 2022.
A13: Commentary on any specific events
A14: Date & Event | C14: Description
A27: Residue Quality Monitoring Results
A28: Parameter (unit) | C28: Limit | D28: Normal Operation
D29: Bottom ash | F29: APC Residues
A30: Total Organic Carbon (average %) | C30: <3% | D30: 1.01
A31: No. of Assessments Undertaken | C31: --- | D31: 36 | F31: 12
A32: No. of Hazardous Results | C32: --- | D32: 0
A34: Comments :

Sheet Water
A1: =+'Cover Page'!$B$29 -> Annual Performance Report 2022 | E1: =+'Cover Page'!$B$33 -> Riverside Resource Recovery Facility
A3: Emissions to Water
A5: Summary of monitoring undertaken and compliance
A6: Monthly visual assessment for visible oil or grease at three emission points for uncontaminated roof and surface water. No visible signs of oil or grease seen throughout 2022.
A13: Commentary on any specific events
A14: Date & Event | C14: Description
A22: Emissions to Water / Sewer
A23: Parameter | D23: Monitoring Frequency | F23: Limit | G23: Target | H23: Max. | I23: Average

Sheet Air (periodic)
A1: =+'Cover Page'!$B$29 -> Annual Performance Report 2022 | E1: =+'Cover Page'!$B$33 -> Riverside Resource Recovery Facility
A3: Emissions to Air (periodically monitored)
A5: Summary of monitoring undertaken, standards used and compliance | K5: Notes:
K6: Template may require adjustment for any bespoke monitoring requirements of permit.
A9: Results of emissions to air that are periodically monitored
A10: Substance | C10: Ref. Period | D10: Emission Limit Value | F10: Average | K10: User to add additional tables as necessary, depending on whether quarterly or bi-annual reporting is required for the compliance year
F11: A1 | G11: A2 | H11: A3
A12: Hydrogen fluoride | C12: 1 hr | D12: 2 mg/m3 | F12: 0.024 | G12: 0.021 | H12: 0.022
A13: Cd and Th and their compounds | C13: 6-8hrs | D13: 0.05 mg/m3 | F13: 0.0009 | G13: 0.001 | H13: 0.0009
A14: Hg and its compounds | C14: 6-8hrs | D14: 0.05 mg/m3 | F14: 0.0004 | G14: 0.0008 | H14: 0.0006
A15: Sb, As, Pb, Cr, Co, Cu, Mn, Ni, V and their compounds | C15: 6-8hrs | D15: 0.5 mg/m3 | F15: 0.017 | G15: 0.013 | H15: 0.012
A16: Dioxins & Furans (I-TEQ) | C16: 6-8hrs | D16: 0.1 ng/m3 | F16: 0.016 | G16: 0.003 | H16: 0.002
A17: PCBs (WHO-TEQ Humans / Mammals) | C17: 6-8hrs | D17: None set ng/m3 | F17: 0.001 | G17: 0.0001 | H17: 0.0002
A18: PCBs (WHO-TEQ Fish) | C18: 6-8hrs | D18: None set ng/m3 | F18: 7e-05 | G18: 8e-06 | H18: 1e-05
A19: PCBs (WHO-TEQ Birds) | C19: 6-8hrs | D19: None set ng/m3 | F19: 0.002 | G19: 0.0003 | H19: 0.0005
A20: Dioxins & Furans (WHO-TEQ Humans / Mammals) | C20: 6-8hrs | D20: None set ng/m3 | F20: 0.016 | G20: 0.003 | H20: 0.002
A21: Dioxins & Furans (WHO-TEQ Fish) | C21: 6-8hrs | D21: None set ng/m3 | F21: 0.016 | G21: 0.002 | H21: 0.002
A22: Dioxins & Furans (WHO-TEQ Birds) | C22: 6-8hrs | D22: None set ng/m3 | F22: 0.021 | G22: 0.003 | H22: 0.003
A23: Anthanthrene | C23: 6-8hrs | D23: None set µg/m3 | F23: 0.0013 | G23: 0.011 | H23: 0.0012
A24: Benzo(a)anthracene | C24: 6-8hrs | D24: None set µg/m3 | F24: 0.0013 | G24: 0.036 | H24: 0.0012
A25: Benzo(a)pyrene | C25: 6-8hrs | D25: None set µg/m3 | F25: 0.0013 | G25: 0.031 | H25: 0.0012
A26: Benzo(b)fluoranthene | C26: 6-8hrs | D26: None set µg/m3 | F26: 0.0013 | G26: 0.016 | H26: 0.0012
A27: Benzo(b)naptho(2,1-d) thiophene | C27: 6-8hrs | D27: None set µg/m3 | F27: 0.0013 | G27: 0.0013 | H27: 0.0056
A28: Benzo(c)phenanthrene | C28: 6-8hrs | D28: None set µg/m3 | F28: 0.0013 | G28: 0.011 | H28: 0.0012
A29: Benzo(ghi)perylene | C29: 6-8hrs | D29: None set µg/m3 | F29: 0.0013 | G29: 0.071 | H29: 0.0012
A30: Benzo(k)fluoranthene | C30: 6-8hrs | D30: None set µg/m3 | F30: 0.0013 | G30: 0.036 | H30: 0.0012
A31: Cholanthrene | C31: 6-8hrs | D31: None set µg/m3 | F31: 0.0013 | G31: 0.0013 | H31: 0.0012
A32: Chrysene | C32: 6-8hrs | D32: None set µg/m3 | F32: 0.0013 | G32: 0.046 | H32: 0.0012
A33: Cyclopenta(cd)pyrene | C33: 6-8hrs | D33: None set µg/m3 | F33: 0.0013 | G33: 0.121 | H33: 0.0012
A34: Dibenzo(ai)pyrene | C34: 6-8hrs | D34: None set µg/m3 | F34: 0.0013 | G34: 0.006 | H34: 0.0012
A35: Dibenzo(ah)anthracene | C35: 6-8hrs | D35: None set µg/m3 | F35: 0.0013 | G35: 0.007 | H35: 0.0056
A36: Fluoranthene | C36: 6-8hrs | D36: None set µg/m3 | F36: 0.02 | G36: 0.54 | H36: 0.015
A37: Indeno(123-cd) pyrene | C37: 6-8hrs | D37: None set µg/m3 | F37: 0.0013 | G37: 0.051 | H37: 0.0012
A38: Naphthalene | C38: 6-8hrs | D38: None set µg/m3 | F38: 0.135 | G38: 12.05 | H38: 0.06
A39: Comments :

Sheet Air (CEMS)
A1: =+'Cover Page'!$B$29 -> Annual Performance Report 2022 | F1: =+'Cover Page'!$B$33 -> Riverside Resource Recovery Facility
A3: Emissions to Air (continously monitored)
L4: Notes:
A5: Summary of monitoring undertaken, standards used and compliance | L5: Template may require adjustment for any bespoke monitoring requirements of permit
A6: All substances listed below are continuously monitored in line with the requirements of the Environmental permit. Oxides of Nitrogen (ISO 10849), Particulate Matter (BS EN 13284-2), Total Organic Carbon (BS EN 12619), Hydrogen Chloride, Sulphur Dioxide (BS 6069-4.4) | L6: Report to 2 decimal places, i.e. xx.xx%
A9: Results of emissions to air that are continuously monitored (maximum and average values for each line)
A10: Substance | B10: Reference Period | C10: Emission Limit Value | D10: A1 | F10: A2 | H10: A3
D11: Max. | E11: Avg. | F11: Max. | G11: Avg. | H11: Max. | I11: Avg.
A12: Oxides of nitrogen | B12: Daily mean | C12: 200 mg/m3 | D12: 169.8 | E12: 168.8 | F12: 168.5 | G12: 160.9 | H12: 165.5 | I12: 155
B13: ½ hourly mean | C13: 400 mg/m3 | D13: 169.8 | E13: 168.9 | F13: 168.4 | G13: 160.9 | H13: 165.5 | I13: 154.9
A14: Particulates | B14: Daily mean | C14: 10 mg/m3
B15: ½ hourly mean | C15: 30 mg/m3
A16: Total Organic Carbon | B16: Daily mean | C16: 10 mg/m3 | D16: 0.2 | E16: 0.16 | F16: 0.9 | G16: 0.76 | H16: 0.3 | I16: 0.27
B17: ½ hourly mean | C17: 20 mg/m3 | D17: 0.2 | E17: 0.2 | F17: 0.9 | G17: 0.77 | H17: 0.4 | I17: 0.3
A18: Hydrogen chloride | B18: Daily mean | C18: 10 mg/m3 | D18: 1.7 | E18: 1.43 | F18: 2.2 | G18: 1.19 | H18: 2.3 | I18: 1.36
B19: ½ hourly mean | C19: 60 mg/m3 | D19: 1.7 | E19: 1.48 | F19: 2.2 | G19: 1.22 | H19: 2.3 | I19: 1.39
A20: Sulphur dioxide | B20: Daily mean | C20: 50 mg/m3 | D20: 2.7 | E20: 1.79 | F20: 10.1 | G20: 7.95 | H20: 10 | I20: 8.98
B21: ½ hourly mean | C21: 200 mg/m3 | D21: 2.8 | E21: 1.83 | F21: 10.1 | G21: 7.97 | H21: 10.1 | I21: 8.99
A22: Carbon monoxide | B22: Daily mean | C22: 50 mg/m3 | D22: 12.3 | E22: 9.63 | F22: 13.2 | G22: 10.83 | H22: 14.9 | I22: 11.68
B23: 95%ile 10-min avg * | C23: 150 mg/m3 * | D23: 12.2 | E23: 9.72 | F23: 13.1 | G23: 10.89 | H23: 14.9 | I23: 11.8
A24: Ammonia | B24: Daily mean | C24: No limit set | D24: 0.5 | E24: 0.43 | F24: 0.4 | G24: 0.3 | H24: 0.5 | I24: 0.45
A25: * = delete or amend as appropriate
A26: Comments :
A27: Following EA guidance and approval in July 2015, RRRL now monitor particulate emissions qualitatively as opposed to quantitatively. The particulate data is now reported in mA (milliamps) and the reporting range of the instrument is 4mA to 20mA.

Sheet HCl
A1: =+'Cover Page'!$B$29 -> Annual Performance Report 2022 | E1: =+'Cover Page'!$B$33 -> Riverside Resource Recovery Facility
A3: Monitoring of Hydrogen Chloride emissions | D3: Whole Installation | G3: See Notes in Cell Q3 | J3: =+A3 -> Monitoring of Hydrogen Chloride emissions | N3: Per Combustion Line | Q3: Notes:
Q4: User to add logic to complete Whole installation, Table A5:G18. From the data in Per Combustion Line, Table J6:O79, subject to No. of lines installed
A5: mg/Nm3 | B5: 1/2 Hourly Reference Periods | E5: Daily Reference Periods
A6: =+'Cover Page'!C39 -> 2022 | B6: 1/2 hourly HCl ELV | C6: Monthly 1/2 hourly mean | D6: Highest 1/2 hourly maximum | E6: Daily HCl ELV | F6: Monthly daily mean | G6: Highest daily maximum | J6: =+A6 -> 2022 | K6: mg/Nm3 | L6: Monthly 1/2 hourly mean | M6: Monthly 1/2 hourly maximum | N6: Monthly daily mean | O6: Monthly daily maximum
A7: Jan | B7: 60 | C7: =(L7+L22+L37)/3 -> 1.466666667 | D7: 2.8 | E7: 10 | F7: =(N7+N22+N37)/3 -> 1.5 | G7: 2.4 | J7: A1 | K7: Jan | L7: 1.6 | M7: 2.7 | N7: 1.7 | O7: 2.4
A8: Feb | B8: 60 | C8: =(L8+L23+L38)/3 -> 1.5 | D8: 3.8 | E8: 10 | F8: =(N8+N23+N38)/3 -> 1.5 | G8: 2.9 | K8: Feb | L8: 1.4 | M8: 2.3 | N8: 1.4 | O8: 1.6
A9: Mar | B9: 60 | C9: 1.566666667 | D9: 3.5 | E9: 10 | F9: 1.566666667 | G9: 3.1 | K9: Mar | L9: 1.6 | M9: 2.9 | N9: 1.6 | O9: 2.4 | Q9: Whole Installation table A5:G18:
A10: Apr | B10: 60 | C10: 1 | D10: 1.9 | E10: 10 | F10: 1 | G10: 1.5 | K10: Apr | L10: 1.4 | M10: 1.9 | N10: 1.4 | O10: 1.5 | Q10: Mean: for 1/2 hourly and daily periods calculate mean of values across all operational combustion lines for the month
A11: May | B11: 60 | C11: 1 | D11: 2.7 | E11: 10 | F11: 1 | G11: 1.4 | K11: May | L11: 1.3 | M11: 2.2 | N11: 1.3 | O11: 1.4
A12: Jun | B12: 60 | C12: 0.9333333333 | D12: 2.4 | E12: 10 | F12: 0.9333333333 | G12: 2 | K12: Jun | L12: 1.5 | M12: 2.4 | N12: 1.5 | O12: 2
A13: Jul | B13: 60 | C13: 0.9 | D13: 1.9 | E13: 10 | F13: 0.9 | G13: 1.5 | K13: Jul | L13: 1.3 | M13: 1.9 | N13: 1.3 | O13: 1.5 | Q13: Maximum: for 1/2 hourly and daily periods use the highest value across all operational combustion lines for the month
A14: Aug | B14: 60 | C14: 1.4 | D14: 3.3 | E14: 10 | F14: 1.4 | G14: 2.8 | K14: Aug | L14: 1.3 | M14: 2.4 | N14: 1.3 | O14: 1.5
A15: Sep | B15: 60 | C15: 2.033333333 | D15: 4.7 | E15: 10 | F15: 2.033333333 | G15: 4 | K15: Sep | L15: 1.6 | M15: 2.6 | N15: 1.6 | O15: 2.2
A16: Oct | B16: 60 | C16: 1.3 | D16: 2.9 | E16: 10 | F16: 1.3 | G16: 2.1 | K16: Oct | L16: 1.4 | M16: 2.6 | N16: 1.4 | O16: 1.8
A17: Nov | B17: 60 | C17: 1.666666667 | D17: 3.3 | E17: 10 | F17: 1.666666667 | G17: 2.8 | K17: Nov | L17: 1.7 | M17: 2.8 | N17: 1.7 | O17: 2.1
A18: Dec | B18: 60 | C18: 1.633333333 | D18: 3.5 | E18: 10 | F18: 1.633333333 | G18: 2.4 | K18: Dec | L18: 1.7 | M18: 2.7 | N18: 1.7 | O18: 2.3
K19: Annual | L19: =AVERAGE(L7:L18) -> 1.483333333 | M19: =MAX(M7:M18) -> 2.9 | N19: =AVERAGE(N7:N18) -> 1.491666667 | O19: =MAX(O7:O18) -> 2.4
J21: =+A6 -> 2022 | K21: mg/Nm3 | L21: Monthly 1/2 hourly mean | M21: Monthly 1/2 hourly maximum | N21: Monthly daily mean | O21: Monthly daily maximum
J22: A2 | K22: Jan | L22: 1.2 | M22: 2.3 | N22: 1.2 | O22: 1.9
K23: Feb | L23: 1.2 | M23: 2.7 | N23: 1.2 | O23: 2.3
K24: Mar | L24: 1.4 | M24: 3.2 | N24: 1.4 | O24: 2.5
K25: Apr | L25: 0.8 | M25: 1.5 | N25: 0.8 | O25: 1.1
K26: May | L26: 0.8 | M26: 2.7 | N26: 0.8 | O26: 1
K27: Jun | L27: 0.4 | M27: 1.3 | N27: 0.4 | O27: 0.9
K28: Jul | L28: 0.5 | M28: 1.8 | N28: 0.5 | O28: 1.1
K29: Aug | L29: 1.5 | M29: 3.3 | N29: 1.5 | O29: 2.8
K30: Sep | L30: 2.2 | M30: 4.7 | N30: 2.2 | O30: 4
K31: Oct | L31: 1.1 | M31: 2.4 | N31: 1.1 | O31: 1.6
K32: Nov | L32: 1.8 | M32: 3.3 | N32: 1.8 | O32: 2.8
K33: Dec | L33: 1.8 | M33: 3.5 | N33: 1.8 | O33: 2.4
K34: Annual | L34: =AVERAGE(L22:L33) -> 1.225 | M34: =MAX(M22:M33) -> 4.7 | N34: =AVERAGE(N22:N33) -> 1.225 | O34: =MAX(O22:O33) -> 4
J36: =+A6 -> 2022 | K36: mg/Nm3 | L36: Monthly 1/2 hourly mean | M36: Monthly 1/2 hourly maximum | N36: Monthly daily mean | O36: Monthly daily maximum
J37: A3 | K37: Jan | L37: 1.6 | M37: 2.8 | N37: 1.6 | O37: 2.4
K38: Feb | L38: 1.9 | M38: 3.8 | N38: 1.9 | O38: 2.9
K39: Mar | L39: 1.7 | M39: 3.5 | N39: 1.7 | O39: 3.1
K40: Apr | L40: 0.8 | M40: 1.7 | N40: 0.8 | O40: 1.3
K41: May | L41: 0.9 | M41: 2.2 | N41: 0.9 | O41: 1.2
K42: Jun | L42: 0.9 | M42: 2.1 | N42: 0.9 | O42: 1.4
K43: Jul | L43: 0.9 | M43: 1.9 | N43: 0.9 | O43: 1.3
K44: Aug | L44: 1.4 | M44: 2.7 | N44: 1.4 | O44: 2.3
K45: Sep | L45: 2.3 | M45: 3.6 | N45: 2.3 | O45: 3.1
K46: Oct | L46: 1.4 | M46: 2.9 | N46: 1.4 | O46: 2.1
K47: Nov | L47: 1.5 | M47: 2.4 | N47: 1.5 | O47: 2.1
A48: Comments : | K48: Dec | L48: 1.4 | M48: 2.5 | N48: 1.4 | O48: 2.1
K49: Annual | L49: =AVERAGE(L37:L48) -> 1.391666667 | M49: =MAX(M37:M48) -> 3.8 | N49: =AVERAGE(N37:N48) -> 1.391666667 | O49: =MAX(O37:O48) -> 3.1

Sheet SO2
A1: =+'Cover Page'!$B$29 -> Annual Performance Report 2022 | E1: =+'Cover Page'!$B$33 -> Riverside Resource Recovery Facility
A3: Monitoring of Sulphur dioxide emissions | D3: Whole Installation | G3: See Notes in Cell Q3 | J3: =+A3 -> Monitoring of Sulphur dioxide emissions | N3: Per Combustion Line | Q3: Notes:
Q4: User to add logic to complete Whole installation, Table A5:G18. From the data in Per Combustion Line, Table J6:O79, subject to No. of lines installed
A5: mg/Nm3 | B5: 1/2 Hourly Reference Periods | E5: Daily Reference Periods
A6: =+'Cover Page'!C39 -> 2022 | B6: 1/2 hourly SO2 ELV | C6: Monthly 1/2 hourly mean | D6: Highest 1/2 hourly maximum | E6: Daily SO2 ELV | F6: Monthly daily mean | G6: Highest daily maximum | J6: =+A6 -> 2022 | K6: mg/Nm3 | L6: Monthly 1/2 hourly mean | M6: Monthly 1/2 hourly maximum | N6: Monthly daily mean | O6: Monthly daily maximum
A7: Jan | B7: 200 | C7: =(L7+L22+L37)/3 -> 5.933333333 | D7: 24.8 | E7: 50 | F7: =(N7+N22+N37)/3 -> 5.9 | G7: 10.4 | J7: A1 | K7: Jan | L7: 1.6 | M7: 24.8 | N7: 1.5 | O7: 2.4
A8: Feb | B8: 200 | C8: =(L8+L23+L38)/3 -> 6.133333333 | D8: 27.5 | E8: 50 | F8: =(N8+N23+N38)/3 -> 6.133333333 | G8: 10.5 | K8: Feb | L8: 1.9 | M8: 27.5 | N8: 1.9 | O8: 3.4
A9: Mar | B9: 200 | C9: 6.1 | D9: 44.3 | E9: 50 | F9: 6.1 | G9: 10.5 | K9: Mar | L9: 2.1 | M9: 44.3 | N9: 2.1 | O9: 5.1 | Q9: Whole Installation table A5:G18:
A10: Apr | B10: 200 | C10: 6.033333333 | D10: 20.3 | E10: 50 | F10: 6.033333333 | G10: 10.7 | K10: Apr | L10: 1.5 | M10: 13.4 | N10: 1.5 | O10: 2.2 | Q10: Mean: for 1/2 hourly and daily periods calculate mean of values across all operational combustion lines for the month
A11: May | B11: 200 | C11: 6.733333333 | D11: 40.1 | E11: 50 | F11: 6.733333333 | G11: 12.5 | K11: May | L11: 1.9 | M11: 25.5 | N11: 1.9 | O11: 4.9
A12: Jun | B12: 200 | C12: 7.333333333 | D12: 48 | E12: 50 | F12: 7.333333333 | G12: 12.6 | K12: Jun | L12: 1.8 | M12: 35.1 | N12: 1.8 | O12: 4
A13: Jul | B13: 200 | C13: 6.966666667 | D13: 38.6 | E13: 50 | F13: 6.966666667 | G13: 10.9 | K13: Jul | L13: 2.3 | M13: 32.4 | N13: 2.3 | O13: 6.6 | Q13: Maximum: for 1/2 hourly and daily periods use the highest value across all operational combustion lines for the month
A14: Aug | B14: 200 | C14: 6.6 | D14: 73.4 | E14: 50 | F14: 6.6 | G14: 10.5 | K14: Aug | L14: 2.8 | M14: 73.4 | N14: 2.8 | O14: 4.9
A15: Sep | B15: 200 | C15: 5.766666667 | D15: 23.2 | E15: 50 | F15: 5.766666667 | G15: 8.9 | K15: Sep | L15: 1.6 | M15: 23.2 | N15: 1.6 | O15: 2.4
A16: Oct | B16: 200 | C16: 6.133333333 | D16: 50.7 | E16: 50 | F16: 6.133333333 | G16: 11.3 | K16: Oct | L16: 2 | M16: 40.3 | N16: 2 | O16: 2.8
A17: Nov | B17: 200 | C17: 5.833333333 | D17: 18.7 | E17: 50 | F17: 5.833333333 | G17: 9.3 | K17: Nov | L17: 1.5 | M17: 16.9 | N17: 1.5 | O17: 3.1
A18: Dec | B18: 200 | C18: 5.6 | D18: 27.3 | E18: 50 | F18: 5.6 | G18: 9.8 | K18: Dec | L18: 1 | M18: 27.3 | N18: 1 | O18: 2.1
K19: Annual | L19: =AVERAGE(L7:L18) -> 1.833333333 | M19: =MAX(M7:M18) -> 73.4 | N19: =AVERAGE(N7:N18) -> 1.825 | O19: =MAX(O7:O18) -> 6.6
J21: =+A6 -> 2022 | K21: mg/Nm3 | L21: Monthly 1/2 hourly mean | M21: Monthly 1/2 hourly maximum | N21: Monthly daily mean | O21: Monthly daily maximum
J22: A2 | K22: Jan | L22: 7.7 | M22: 17.8 | N22: 7.7 | O22: 8.9
K23: Feb | L23: 7.7 | M23: 15.3 | N23: 7.7 | O23: 9.1
K24: Mar | L24: 7.5 | M24: 33.4 | N24: 7.5 | O24: 9.4
K25: Apr | L25: 7.5 | M25: 13.1 | N25: 7.5 | O25: 8.3
K26: May | L26: 8.2 | M26: 29.4 | N26: 8.2 | O26: 9.5
K27: Jun | L27: 10.1 | M27: 36.4 | N27: 10.1 | O27: 12.4
K28: Jul | L28: 9.1 | M28: 38.6 | N28: 9.1 | O28: 10.7
K29: Aug | L29: 8.1 | M29: 20.5 | N29: 8.1 | O29: 10.5
K30: Sep | L30: 7.4 | M30: 13.4 | N30: 7.4 | O30: 7.7
K31: Oct | L31: 7.6 | M31: 21.2 | N31: 7.6 | O31: 8
K32: Nov | L32: 7.4 | M32: 11.5 | N32: 7.4 | O32: 7.8
K33: Dec | L33: 7.3 | M33: 20.7 | N33: 7.3 | O33: 8.4
K34: Annual | L34: =AVERAGE(L22:L33) -> 7.966666667 | M34: =MAX(M22:M33) -> 38.6 | N34: =AVERAGE(N22:N33) -> 7.966666667 | O34: =MAX(O22:O33) -> 12.4
J36: =+A6 -> 2022 | K36: mg/Nm3 | L36: Monthly 1/2 hourly mean | M36: Monthly 1/2 hourly maximum | N36: Monthly daily mean | O36: Monthly daily maximum
J37: A3 | K37: Jan | L37: 8.5 | M37: 16.8 | N37: 8.5 | O37: 10.4
K38: Feb | L38: 8.8 | M38: 24.5 | N38: 8.8 | O38: 10.5
K39: Mar | L39: 8.7 | M39: 36.4 | N39: 8.7 | O39: 10.5
K40: Apr | L40: 9.1 | M40: 20.3 | N40: 9.1 | O40: 10.7
K41: May | L41: 10.1 | M41: 40.1 | N41: 10.1 | O41: 12.5
K42: Jun | L42: 10.1 | M42: 48 | N42: 10.1 | O42: 12.6
K43: Jul | L43: 9.5 | M43: 36.2 | N43: 9.5 | O43: 10.9
K44: Aug | L44: 8.9 | M44: 32.7 | N44: 8.9 | O44: 9.7
K45: Sep | L45: 8.3 | M45: 15.3 | N45: 8.3 | O45: 8.9
K46: Oct | L46: 8.8 | M46: 50.7 | N46: 8.8 | O46: 11.3
K47: Nov | L47: 8.6 | M47: 18.7 | N47: 8.6 | O47: 9.3
A48: Comments : | K48: Dec | L48: 8.5 | M48: 25.6 | N48: 8.5 | O48: 9.8
K49: Annual | L49: =AVERAGE(L37:L48) -> 8.991666667 | M49: =MAX(M37:M48) -> 50.7 | N49: =AVERAGE(N37:N48) -> 8.991666667 | O49: =MAX(O37:O48) -> 12.6

Sheet NOx
A1: =+'Cover Page'!$B$29 -> Annual Performance Report 2022 | E1: =+'Cover Page'!$B$33 -> Riverside Resource Recovery Facility
A3: Monitoring of Oxides of Nitrogen emissions | D3: Whole Installation | G3: See Notes in Cell Q3 | J3: =+A3 -> Monitoring of Oxides of Nitrogen emissions | N3: Per Combustion Line | Q3: Notes:
Q4: User to add logic to complete Whole installation, Table A5:G18. From the data in Per Combustion Line, Table J6:O79, subject to No. of lines installed
A5: mg/Nm3 | B5: 1/2 Hourly Reference Periods | E5: Daily Reference Periods
A6: =+'Cover Page'!C39 -> 2022 | B6: 1/2 hourly NOx ELV | C6: Monthly 1/2 hourly mean | D6: Highest 1/2 hourly maximum | E6: Daily NOx ELV | F6: Monthly daily mean | G6: Highest daily maximum | J6: =+A6 -> 2022 | K6: mg/Nm3 | L6: Monthly 1/2 hourly mean | M6: Monthly 1/2 hourly maximum | N6: Monthly daily mean | O6: Monthly daily maximum
A7: Jan | B7: 400 | C7: =(L7+L22+L37)/3 -> 165.2666667 | D7: 212.4 | E7: 200 | F7: =(N7+N22+N37)/3 -> 163.1333333 | G7: 170.5 | J7: A1 | K7: Jan | L7: 168.8 | M7: 200.9 | N7: 165.2 | O7: 170.5
A8: Feb | B8: 400 | C8: =(L8+L23+L38)/3 -> 158.8333333 | D8: 206.5 | E8: 200 | F8: =(N8+N23+N38)/3 -> 159.1 | G8: 171 | K8: Feb | L8: 169 | M8: 205.7 | N8: 169 | O8: 171
A9: Mar | B9: 400 | C9: 161.1333333 | D9: 227 | E9: 200 | F9: 161.1333333 | G9: 173 | K9: Mar | L9: 168.6 | M9: 227 | N9: 168.6 | O9: 173 | Q9: Whole Installation table A5:G18:
A10: Apr | B10: 400 | C10: 164.0666667 | D10: 213.7 | E10: 200 | F10: 164.0666667 | G10: 171 | K10: Apr | L10: 169.6 | M10: 213.7 | N10: 169.6 | O10: 171 | Q10: Mean: for 1/2 hourly and daily periods calculate mean of values across all operational combustion lines for the month
A11: May | B11: 400 | C11: 156.5666667 | D11: 216.9 | E11: 200 | F11: 156.5666667 | G11: 71 | K11: May | L11: 168.3 | M11: 216.9 | N11: 168.3 | O11: 171
A12: Jun | B12: 400 | C12: 163.9333333 | D12: 210.7 | E12: 200 | F12: 163.9333333 | G12: 170.7 | K12: Jun | L12: 168 | M12: 210.7 | N12: 168 | O12: 170.7
A13: Jul | B13: 400 | C13: 162 | D13: 206.2 | E13: 200 | F13: 162 | G13: 170.7 | K13: Jul | L13: 169.4 | M13: 206.2 | N13: 169.4 | O13: 170.7 | Q13: Maximum: for 1/2 hourly and daily periods use the highest value across all operational combustion lines for the month
A14: Aug | B14: 400 | C14: 159.4 | D14: 207.2 | E14: 200 | F14: 159.4 | G14: 171.8 | K14: Aug | L14: 169.8 | M14: 207.2 | N14: 169.8 | O14: 171.8
A15: Sep | B15: 400 | C15: 160.5333333 | D15: 199.5 | E15: 200 | F15: 160.5333333 | G15: 170.9 | K15: Sep | L15: 168.9 | M15: 199.5 | N15: 168.9 | O15: 170.9
A16: Oct | B16: 400 | C16: 164.5 | D16: 206.1 | E16: 200 | F16: 164.5 | G16: 170.6 | K16: Oct | L16: 168.6 | M16: 206.1 | N16: 168.6 | O16: 170.6
A17: Nov | B17: 400 | C17: 160.5 | D17: 218.1 | E17: 200 | F17: 160.5 | G17: 175.5 | K17: Nov | L17: 168.2 | M17: 218.1 | N17: 168.2 | O17: 175.5
A18: Dec | B18: 400 | C18: 161.9 | D18: 196.7 | E18: 200 | F18: 161.9 | G18: 170.8 | K18: Dec | L18: 169.2 | M18: 196.7 | N18: 169.2 | O18: 170.8
K19: Annual | L19: =AVERAGE(L7:L18) -> 168.8666667 | M19: =MAX(M7:M18) -> 227 | N19: =AVERAGE(N7:N18) -> 168.5666667 | O19: =MAX(O7:O18) -> 175.5
J21: =+A6 -> 2022 | K21: mg/Nm3 | L21: Monthly 1/2 hourly mean | M21: Monthly 1/2 hourly maximum | N21: Monthly daily mean | O21: Monthly daily maximum
J22: A2 | K22: Jan | L22: 161.5 | M22: 195.8 | N22: 161.9 | O22: 168.7
K23: Feb | L23: 153.5 | M23: 192.3 | N23: 153.6 | O23: 165.7
K24: Mar | L24: 160.7 | M24: 201.3 | N24: 160.7 | O24: 170.1
K25: Apr | L25: 159.5 | M25: 196.5 | N25: 159.5 | O25: 170.4
K26: May | L26: 151.2 | M26: 193 | N26: 151.2 | O26: 160.6
K27: Jun | L27: 168.4 | M27: 198.5 | N27: 168.4 | O27: 170.6
K28: Jul | L28: 165.2 | M28: 195.8 | N28: 165.2 | O28: 170.5
K29: Aug | L29: 162.1 | M29: 200.2 | N29: 162.1 | O29: 171.7
K30: Sep | L30: 164.8 | M30: 192.5 | N30: 164.8 | O30: 170
K31: Oct | L31: 164.1 | M31: 203.5 | N31: 164.1 | O31: 170
K32: Nov | L32: 158.8 | M32: 214 | N32: 158.8 | O32: 169.5
K33: Dec | L33: 160.4 | M33: 194.2 | N33: 160.4 | O33: 170
K34: Annual | L34: =AVERAGE(L22:L33) -> 160.85 | M34: =MAX(M22:M33) -> 214 | N34: =AVERAGE(N22:N33) -> 160.8916667 | O34: =MAX(O22:O33) -> 171.7
J36: =+A6 -> 2022 | K36: mg/Nm3 | L36: Monthly 1/2 hourly mean | M36: Monthly 1/2 hourly maximum | N36: Monthly daily mean | O36: Monthly daily maximum
J37: A3 | K37: Jan | L37: 165.5 | M37: 212.4 | N37: 162.3 | O37: 170.3
K38: Feb | L38: 154 | M38: 206.5 | N38: 154.7 | O38: 163.2
K39: Mar | L39: 154.1 | M39: 196.6 | N39: 154.1 | O39: 166.4
K40: Apr | L40: 163.1 | M40: 200.1 | N40: 163.1 | O40: 168.7
K41: May | L41: 150.2 | M41: 198.4 | N41: 150.2 | O41: 163.3
K42: Jun | L42: 155.4 | M42: 198.7 | N42: 155.4 | O42: 164.9
K43: Jul | L43: 151.4 | M43: 191.8 | N43: 151.4 | O43: 168.8
K44: Aug | L44: 146.3 | M44: 185.5 | N44: 146.3 | O44: 163.4
K45: Sep | L45: 147.9 | M45: 181.3 | N45: 147.9 | O45: 158.8
K46: Oct | L46: 160.8 | M46: 195.1 | N46: 160.8 | O46: 169.1
K47: Nov | L47: 154.5 | M47: 197.4 | N47: 154.5 | O47: 165.1
A48: Comments : | K48: Dec | L48: 156.1 | M48: 194.8 | N48: 156.1 | O48: 167.9
K49: Annual | L49: =AVERAGE(L37:L48) -> 154.9416667 | M49: =MAX(M37:M48) -> 212.4 | N49: =AVERAGE(N37:N48) -> 154.7333333 | O49: =MAX(O37:O48) -> 170.3

Sheet TOC
A1: =+'Cover Page'!$B$29 -> Annual Performance Report 2022 | E1: =+'Cover Page'!$B$33 -> Riverside Resource Recovery Facility
A3: Monitoring of Total organic carbon emissions | D3: Whole Installation | G3: See Notes in Cell Q3 | J3: =+A3 -> Monitoring of Total organic carbon emissions | N3: Per Combustion Line | Q3: Notes:
Q4: User to add logic to complete Whole installation, Table A5:G18. From the data in Per Combustion Line, Table J6:O79, subject to No. of lines installed
A5: mg/Nm3 | B5: 1/2 Hourly Reference Periods | E5: Daily Reference Periods
A6: =+'Cover Page'!C39 -> 2022 | B6: 1/2 hourly TOC ELV | C6: Monthly 1/2 hourly mean | D6: Highest 1/2 hourly maximum | E6: Daily TOC ELV | F6: Monthly daily mean | G6: Highest daily maximum | J6: =+A6 -> 2022 | K6: mg/Nm3 | L6: Monthly 1/2 hourly mean | M6: Monthly 1/2 hourly maximum | N6: Monthly daily mean | O6: Monthly daily maximum
A7: Jan | B7: 20 | C7: =(L7+L22+L37)/3 -> 0.4 | D7: 8 | E7: 10 | F7: =(N7+N22+N37)/3 -> 0.4 | G7: 0.9 | J7: A1 | K7: Jan | L7: 0.2 | M7: 5.1 | N7: 0.2 | O7: 0.4
A8: Feb | B8: 20 | C8: =(L8+L23+L38)/3 -> 0.4 | D8: 10.3 | E8: 10 | F8: =(N8+N23+N38)/3 -> 0.4 | G8: 1 | K8: Feb | L8: 0.2 | M8: 7.5 | N8: 0.2 | O8: 0.4
A9: Mar | B9: 20 | C9: 0.4333333333 | D9: 8.1 | E9: 10 | F9: 0.4333333333 | G9: 1 | K9: Mar | L9: 0.2 | M9: 6.2 | N9: 0.2 | O9: 0.5 | Q9: Whole Installation table A5:G18:
A10: Apr | B10: 20 | C10: 0.4 | D10: 10.3 | E10: 10 | F10: 0.4 | G10: 1.4 | K10: Apr | L10: 0.2 | M10: 7.6 | N10: 0.2 | O10: 0.4 | Q10: Mean: for 1/2 hourly and daily periods calculate mean of values across all operational combustion lines for the month
A11: May | B11: 20 | C11: 0.4666666667 | D11: 10.7 | E11: 10 | F11: 0.4666666667 | G11: 1 | K11: May | L11: 0.2 | M11: 9.5 | N11: 0.2 | O11: 0.4
A12: Jun | B12: 20 | C12: 0.4 | D12: 9.6 | E12: 10 | F12: 0.4 | G12: 0.9 | K12: Jun | L12: 0.2 | M12: 5.4 | N12: 0.2 | O12: 0.3
A13: Jul | B13: 20 | C13: 0.4 | D13: 12.6 | E13: 10 | F13: 0.4 | G13: 1 | K13: Jul | L13: 0.2 | M13: 5.1 | N13: 0.2 | O13: 0.4 | Q13: Maximum: for 1/2 hourly and daily periods use the highest value across all operational combustion lines for the month
A14: Aug | B14: 20 | C14: 0.4333333333 | D14: 11.9 | E14: 10 | F14: 0.4333333333 | G14: 1.3 | K14: Aug | L14: 0.2 | M14: 9.1 | N14: 0.2 | O14: 0.8
A15: Sep | B15: 20 | C15: 0.4333333333 | D15: 9.5 | E15: 10 | F15: 0.4333333333 | G15: 1.1 | K15: Sep | L15: 0.2 | M15: 5.9 | N15: 0.2 | O15: 0.5
A16: Oct | B16: 20 | C16: 0.4 | D16: 9.7 | E16: 10 | F16: 0.4 | G16: 1.2 | K16: Oct | L16: 0.2 | M16: 6.3 | N16: 0.2 | O16: 0.5
A17: Nov | B17: 20 | C17: 0.4333333333 | D17: 10.1 | E17: 10 | F17: 0.4333333333 | G17: 1.1 | K17: Nov | L17: 0.2 | M17: 6.3 | N17: 0.2 | O17: 0.3
A18: Dec | B18: 20 | C18: 0.4666666667 | D18: 9.7 | E18: 10 | F18: 0.4666666667 | G18: 1.1 | K18: Dec | L18: 0.2 | M18: 5.2 | N18: 0.2 | O18: 0.5
K19: Annual | L19: =AVERAGE(L7:L18) -> 0.2 | M19: =MAX(M7:M18) -> 9.5 | N19: =AVERAGE(N7:N18) -> 0.2 | O19: =MAX(O7:O18) -> 0.8
J21: =+A6 -> 2022 | K21: mg/Nm3 | L21: Monthly 1/2 hourly mean | M21: Monthly 1/2 hourly maximum | N21: Monthly daily mean | O21: Monthly daily maximum
J22: A2 | K22: Jan | L22: 0.7 | M22: 8 | N22: 0.7 | O22: 0.9
K23: Feb | L23: 0.7 | M23: 9 | N23: 0.7 | O23: 1
K24: Mar | L24: 0.8 | M24: 8.1 | N24: 0.8 | O24: 1
K25: Apr | L25: 0.7 | M25: 10.3 | N25: 0.7 | O25: 1.4
K26: May | L26: 0.8 | M26: 8.1 | N26: 0.8 | O26: 1
K27: Jun | L27: 0.7 | M27: 9.6 | N27: 0.7 | O27: 0.9
K28: Jul | L28: 0.7 | M28: 12.6 | N28: 0.7 | O28: 1
K29: Aug | L29: 0.8 | M29: 11.9 | N29: 0.8 | O29: 1.3
K30: Sep | L30: 0.8 | M30: 9.5 | N30: 0.8 | O30: 1.1
K31: Oct | L31: 0.8 | M31: 9.7 | N31: 0.8 | O31: 1.2
K32: Nov | L32: 0.8 | M32: 10.1 | N32: 0.8 | O32: 1.1
K33: Dec | L33: 0.9 | M33: 9.7 | N33: 0.9 | O33: 1.1
K34: Annual | L34: =AVERAGE(L22:L33) -> 0.7666666667 | M34: =MAX(M22:M33) -> 12.6 | N34: =AVERAGE(N22:N33) -> 0.7666666667 | O34: =MAX(O22:O33) -> 1.4
J36: =+A6 -> 2022 | K36: mg/Nm3 | L36: Monthly 1/2 hourly mean | M36: Monthly 1/2 hourly maximum | N36: Monthly daily mean | O36: Monthly daily maximum
J37: A3 | K37: Jan | L37: 0.3 | M37: 6.8 | N37: 0.3 | O37: 0.7
K38: Feb | L38: 0.3 | M38: 10.3 | N38: 0.3 | O38: 0.6
K39: Mar | L39: 0.3 | M39: 7.1 | N39: 0.3 | O39: 0.5
K40: Apr | L40: 0.3 | M40: 6.9 | N40: 0.3 | O40: 0.5
K41: May | L41: 0.4 | M41: 10.7 | N41: 0.4 | O41: 0.7
K42: Jun | L42: 0.3 | M42: 6.1 | N42: 0.3 | O42: 0.5
K43: Jul | L43: 0.3 | M43: 6.1 | N43: 0.3 | O43: 0.5
K44: Aug | L44: 0.3 | M44: 6.9 | N44: 0.3 | O44: 0.9
K45: Sep | L45: 0.3 | M45: 6.1 | N45: 0.3 | O45: 0.5
K46: Oct | L46: 0.2 | M46: 7.3 | N46: 0.2 | O46: 0.4
K47: Nov | L47: 0.3 | M47: 7.6 | N47: 0.3 | O47: 0.7
A48: Comments : | K48: Dec | L48: 0.3 | M48: 9 | N48: 0.3 | O48: 0.7
K49: Annual | L49: =AVERAGE(L37:L48) -> 0.3 | M49: =MAX(M37:M48) -> 10.7 | N49: =AVERAGE(N37:N48) -> 0.3 | O49: =MAX(O37:O48) -> 0.9

Sheet CO 95% 10 min
A1: =+'Cover Page'!$B$29 -> Annual Performance Report 2022 | E1: =+'Cover Page'!$B$33 -> Riverside Resource Recovery Facility
A3: Monitoring of Carbon Monoxide (10-minute avg) | E3: Whole Installation | H3: See Notes in Cell S3 | J3: =+A3 -> Monitoring of Carbon Monoxide (10-minute avg) | O3: Per Combustion Line | Q3: Notes: | S3: Notes:
S4: User to add logic to complete Whole installation, Table A5:H18. From the data in Per Combustion Line, Table K6:Q79, subject to No. of lines installed
A5: mg/Nm3 | B5: 10-minute Reference Periods | F5: Daily Reference Periods
A6: =+'Cover Page'!C39 -> 2022 | B6: 95%ile 10-min avg CO ELV | C6: 95%ile 10-min avg maximum | D6: Monthly CO 10-min avg mean | E6: 10-min avg maximum | F6: Daily CO ELV | G6: Monthly daily mean | H6: Highest daily maximum | K6: =+A6 -> 2022 | L6: mg/Nm3 | M6: 95%ile 10-min avg maximum | N6: Monthly CO 10-min avg mean | O6: 10-min avg maximum | P6: Monthly daily mean | Q6: Monthly daily maximum
A7: Jan | B7: 150 | C7: =(M7+M22+M37)/3 -> 37.63333333 | D7: =(N7+N22+N37)/3 -> 8.433333333 | E7: 502.9 | F7: 50 | G7: =(P7+P22+P37)/3 -> 8.433333333 | H7: 15.1 | K7: A1 | L7: Jan | M7: 53.7 | N7: 9.2 | O7: 524.2 | P7: 9.2 | Q7: 15.1
A8: Feb | B8: =+B7 -> 150 | C8: =(M8+M23+M38)/3 -> 50.3 | D8: =(N8+N23+N38)/3 -> 9.666666667 | E8: =(O8+O23+O38)/3 -> 485.4 | F8: =+F7 -> 50 | G8: =(P8+P23+P38)/3 -> 9.666666667 | H8: 18.5 | L8: Feb | M8: 40.4 | N8: 8.9 | O8: 453.2 | P8: 8.9 | Q8: 13.2
A9: Mar | B9: =+B8 -> 150 | C9: 65.06666667 | D9: 10.4 | E9: 552.8666667 | F9: =+F8 -> 50 | G9: 10.4 | H9: 19.1 | L9: Mar | M9: 58.9 | N9: 10.2 | O9: 491.2 | P9: 10.2 | Q9: 18.8 | S9: Whole Installation table A5:H18:
A10: Apr | B10: 150 | C10: 79.3 | D10: 11.56666667 | E10: 603.6 | F10: 50 | G10: 11.56666667 | H10: 29.4 | L10: Apr | M10: 116 | N10: 12.2 | O10: 525.2 | P10: 12.2 | Q10: 19.5 | S10: Mean: for 10-min and daily periods use average of all operational combustion lines.
A11: May | B11: 150 | C11: 79.36666667 | D11: 10.56666667 | E11: 505.4 | F11: 50 | G11: 10.56666667 | H11: 19.8 | L11: May | M11: 53.6 | N11: 7.5 | O11: 516.2 | P11: 7.5 | Q11: 13.5
A12: Jun | B12: 150 | C12: 44.13333333 | D12: 9.466666667 | E12: 507.0666667 | F12: 50 | G12: 9.466666667 | H12: 21.2 | L12: Jun | M12: 34.6 | N12: 8.3 | O12: 509.3 | P12: 8.3 | Q12: 15.4
A13: Jul | B13: 150 | C13: 41.3 | D13: 10.23333333 | E13: 556.4666667 | F13: 50 | G13: 10.23333333 | H13: 16.9 | L13: Jul | M13: 29 | N13: 9.9 | O13: 573 | P13: 9.9 | Q13: 14.7 | S13: Maximum: for 10-min and daily periods use the highest of all operational combustion lines in any month.
A14: Aug | B14: 150 | C14: 59.63333333 | D14: 11.56666667 | E14: 525.5 | F14: 50 | G14: 11.56666667 | H14: 21.1 | L14: Aug | M14: 25.6 | N14: 8.2 | O14: 508.5 | P14: 8.2 | Q14: 12.8
A15: Sep | B15: 150 | C15: 64.26666667 | D15: 12.36666667 | E15: 541.7333333 | F15: 50 | G15: 12.36666667 | H15: 25.6 | L15: Sep | M15: 44.2 | N15: 10.1 | O15: 523.5 | P15: 10.1 | Q15: 15.3
A16: Oct | B16: 150 | C16: 59.53333333 | D16: 11.66666667 | E16: 492.9666667 | F16: 50 | G16: 11.66666667 | H16: 23.1 | L16: Oct | M16: 60.9 | N16: 11.3 | O16: 530.9 | P16: 11.3 | Q16: 18.2
A17: Nov | B17: 150 | C17: 47 | D17: 11.23333333 | E17: 489.9 | F17: 50 | G17: 11.23333333 | H17: 19 | L17: Nov | M17: 34 | N17: 10.8 | O17: 579 | P17: 10.8 | Q17: 14.9
A18: Dec | B18: 150 | C18: 57.6 | D18: 12.4 | E18: 450.5333333 | F18: 50 | G18: 12.4 | H18: 20.3 | L18: Dec | M18: 41.3 | N18: 10.1 | O18: 486.8 | P18: 10.1 | Q18: 17.4
L19: Annual | M19: =AVERAGE(M7:M18) -> 49.35 | N19: =AVERAGE(N7:N18) -> 9.725 | O19: =MAX(O7:O18) -> 579 | P19: =AVERAGE(P7:P18) -> 9.725 | Q19: =MAX(Q7:Q18) -> 19.5
K21: =+A6 -> 2022 | L21: mg/Nm3 | M21: 95%ile 10-min avg maximum | N21: Monthly CO 10-min avg mean | O21: 10-min avg maximum | P21: Monthly daily mean | Q21: Monthly daily maximum
K22: A2 | L22: Jan | M22: 30.3 | N22: 7.7 | O22: 372.2 | P22: 7.7 | Q22: 10.7
L23: Feb | M23: 56.8 | N23: 9.9 | O23: 433 | P23: 9.9 | Q23: 18.5
L24: Mar | M24: 47 | N24: 9.4 | O24: 491.9 | P24: 9.4 | Q24: 14.4
L25: Apr | M25: 86.2 | N25: 9.7 | O25: 857.6 | P25: 9.7 | Q25: 29.4
L26: May | M26: 100.6 | N26: 12.2 | O26: 453 | P26: 12.2 | Q26: 19.8
L27: Jun | M27: 44.5 | N27: 9.4 | O27: 531.9 | P27: 9.4 | Q27: 21.2
L28: Jul | M28: 43.4 | N28: 10.7 | O28: 528.5 | P28: 10.7 | Q28: 16.9
L29: Aug | M29: 70.6 | N29: 13.1 | O29: 572.6 | P29: 13.1 | Q29: 21.1
L30: Sep | M30: 48.8 | N30: 12.1 | O30: 569.1 | P30: 12.1 | Q30: 18.6
L31: Oct | M31: 41.9 | N31: 12.7 | O31: 563.9 | P31: 12.7 | Q31: 18.1
L32: Nov | M32: 50.6 | N32: 11.4 | O32: 482.5 | P32: 11.4 | Q32: 17.8
L33: Dec | M33: 45.5 | N33: 12.7 | O33: 410.5 | P33: 12.7 | Q33: 17.8
L34: Annual | M34: =AVERAGE(M22:M33) -> 55.51666667 | N34: =AVERAGE(N22:N33) -> 10.91666667 | O34: =MAX(O22:O33) -> 857.6 | P34: =AVERAGE(P22:P33) -> 10.91666667 | Q34: =MAX(Q22:Q33) -> 29.4
K36: =+A6 -> 2022 | L36: mg/Nm3 | M36: 95%ile 10-min avg maximum | N36: Monthly CO 10-min avg mean | O36: 10-min avg maximum | P36: Monthly daily mean | Q36: Monthly daily maximum
K37: A3 | L37: Jan | M37: 28.9 | N37: 8.4 | O37: 612.3 | P37: 8.4 | Q37: 12.8
L38: Feb | M38: 53.7 | N38: 10.2 | O38: 570 | P38: 10.2 | Q38: 18.2
L39: Mar | M39: 89.3 | N39: 11.6 | O39: 675.5 | P39: 11.6 | Q39: 19.1
L40: Apr | M40: 35.7 | N40: 12.8 | O40: 428 | P40: 12.8 | Q40: 15.4
L41: May | M41: 83.9 | N41: 12 | O41: 547 | P41: 12 | Q41: 17.9
L42: Jun | M42: 53.3 | N42: 10.7 | O42: 480 | P42: 10.7 | Q42: 19.7
L43: Jul | M43: 51.5 | N43: 10.1 | O43: 567.9 | P43: 10.1 | Q43: 15.9
L44: Aug | M44: 82.7 | N44: 13.4 | O44: 495.4 | P44: 13.4 | Q44: 20
L45: Sep | M45: 99.8 | N45: 14.9 | O45: 532.6 | P45: 14.9 | Q45: 25.6
L46: Oct | M46: 75.8 | N46: 11 | O46: 384.1 | P46: 11 | Q46: 23.1
L47: Nov | M47: 56.4 | N47: 11.5 | O47: 408.2 | P47: 11.5 | Q47: 19
A48: Comments : | L48: Dec | M48: 86 | N48: 14.4 | O48: 454.3 | P48: 14.4 | Q48: 20.3
A49: Environment Agency explanatory note: The 10-minute average ELV is based on the “95th percentile”. In this case this means that 95% of the 10 minute averages in the relevant 24-hour period (i.e. 137) must be below 150 mg/Nm3, and 5% (i.e. 7) are allowed to be any value above 150 mg/Nm3. Whilst we expect operators to minimise CO emissions at all times, it is perfectly acceptable for the value of the maximum 10-minute average to be above 150 mg/Nm3, provided the 95th percentile ELV has been met for that period. | L49: Annual | M49: =AVERAGE(M37:M48) -> 66.41666667 | N49: =AVERAGE(N37:N48) -> 11.75 | O49: =MAX(O37:O48) -> 675.5 | P49: =AVERAGE(P37:P48) -> 11.75 | Q49: =MAX(Q37:Q48) -> 25.6

Sheet NH3
A1: =+'Cover Page'!$B$29 -> Annual Performance Report 2022 | E1: =+'Cover Page'!$B$33 -> Riverside Resource Recovery Facility
A3: Monitoring of Ammnonia emissions | D3: Whole Installation | G3: See Notes in Cell Q3 | J3: =+A3 -> Monitoring of Ammnonia emissions | N3: Per Combustion Line | Q3: Notes:
Q4: User to add logic to complete Whole installation, Table A5:G18. From the data in Per Combustion Line, Table J6:O79, subject to No. of lines installed
A5: mg/Nm3 | B5: 1/2 Hourly Reference Periods | E5: Daily Reference Periods
A6: =+'Cover Page'!C39 -> 2022 | B6: 1/2 hourly NH3 ELV | C6: Monthly 1/2 hourly mean | D6: Highest 1/2 hourly maximum | E6: Daily NH3 ELV | F6: Monthly daily mean | G6: Highest daily maximum | J6: =+A6 -> 2022 | K6: mg/Nm3 | L6: Monthly 1/2 hourly mean | M6: Monthly 1/2 hourly maximum | N6: Monthly daily mean | O6: Monthly daily maximum
A7: Jan | B7: 0 | C7: =(L7+L22+L37)/3 -> 0.3666666667 | D7: 2.7 | E7: 10 | F7: =(N7+N22+N37)/3 -> 0.3666666667 | G7: 0.6 | J7: A1 | K7: Jan | L7: 0.4 | M7: 2.7 | N7: 0.4 | O7: 0.5
A8: Feb | B8: =+B7 -> 0 | C8: =(L8+L23+L38)/3 -> 0.3666666667 | D8: 4 | E8: =+E7 -> 10 | F8: =(N8+N23+N38)/3 -> 0.3666666667 | G8: 0.6 | K8: Feb | L8: 0.4 | M8: 4 | N8: 0.4 | O8: 0.6
A9: Mar | B9: =+B8 -> 0 | C9: 0.3666666667 | D9: 2.4 | E9: =+E8 -> 10 | F9: 0.3666666667 | G9: 0.5 | K9: Mar | L9: 0.4 | M9: 2.4 | N9: 0.4 | O9: 0.5 | Q9: Whole Installation table A5:G18:
A10: Apr | B10: 0 | C10: 0.4 | D10: 6.2 | E10: 5.5 | F10: 0.4 | G10: 0.6 | K10: Apr | L10: 0.4 | M10: 2.6 | N10: 0.4 | O10: 0.5 | Q10: Mean: for 1/2 hourly and daily periods calculate mean of values across all operational combustion lines for the month
A11: May | B11: 0 | C11: 0.4 | D11: 5.5 | E11: 5.5 | F11: 0.4 | G11: 0.7 | K11: May | L11: 0.4 | M11: 5.4 | N11: 0.4 | O11: 0.6
A12: Jun | B12: 0 | C12: 0.4333333333 | D12: 2.8 | E12: 5.5 | F12: 0.4333333333 | G12: 0.6 | K12: Jun | L12: 0.4 | M12: 2 | N12: 0.4 | O12: 0.5
A13: Jul | B13: 0 | C13: 0.4333333333 | D13: 1.9 | E13: 5.5 | F13: 0.4333333333 | G13: 0.9 | K13: Jul | L13: 0.5 | M13: 1.9 | N13: 0.5 | O13: 0.9 | Q13: Maximum: for 1/2 hourly and daily periods use the highest value across all operational combustion lines for the month
A14: Aug | B14: 0 | C14: 0.5 | D14: 5.1 | E14: 5.5 | F14: 0.5 | G14: 0.9 | K14: Aug | L14: 0.6 | M14: 5.1 | N14: 0.6 | O14: 0.9
A15: Sep | B15: 0 | C15: 0.4333333333 | D15: 2.4 | E15: 5.5 | F15: 0.4333333333 | G15: 0.6 | K15: Sep | L15: 0.5 | M15: 2.4 | N15: 0.5 | O15: 0.6
A16: Oct | B16: 0 | C16: 0.4666666667 | D16: 5.2 | E16: 5.5 | F16: 0.4666666667 | G16: 0.9 | K16: Oct | L16: 0.5 | M16: 5.2 | N16: 0.5 | O16: 0.9
A17: Nov | B17: 0 | C17: 0.4666666667 | D17: 2.3 | E17: 5.5 | F17: 0.4666666667 | G17: 0.7 | K17: Nov | L17: 0.5 | M17: 2.3 | N17: 0.5 | O17: 0.7
A18: Dec | B18: 0 | C18: 0.4666666667 | D18: 4.6 | E18: 5.5 | F18: 0.4666666667 | G18: 0.6 | K18: Dec | L18: 0.5 | M18: 3.5 | N18: 0.5 | O18: 0.6
K19: Annual | L19: =AVERAGE(L7:L18) -> 0.4583333333 | M19: =MAX(M7:M18) -> 5.4 | N19: =AVERAGE(N7:N18) -> 0.4583333333 | O19: =MAX(O7:O18) -> 0.9
J21: =+A6 -> 2022 | K21: mg/Nm3 | L21: Monthly 1/2 hourly mean | M21: Monthly 1/2 hourly maximum | N21: Monthly daily mean | O21: Monthly daily maximum
J22: A2 | K22: Jan | L22: 0.3 | M22: 2.3 | N22: 0.3 | O22: 0.4
K23: Feb | L23: 0.3 | M23: 3.6 | N23: 0.3 | O23: 0.4
K24: Mar | L24: 0.3 | M24: 1.4 | N24: 0.3 | O24: 0.4
K25: Apr | L25: 0.3 | M25: 6.2 | N25: 0.3 | O25: 0.6
K26: May | L26: 0.3 | M26: 5.5 | N26: 0.3 | O26: 0.5
K27: Jun | L27: 0.4 | M27: 2.8 | N27: 0.4 | O27: 0.6
K28: Jul | L28: 0.3 | M28: 1.7 | N28: 0.3 | O28: 0.4
K29: Aug | L29: 0.4 | M29: 1.3 | N29: 0.4 | O29: 0.5
K30: Sep | L30: 0.3 | M30: 1.5 | N30: 0.3 | O30: 0.4
K31: Oct | L31: 0.4 | M31: 1.9 | N31: 0.4 | O31: 0.5
K32: Nov | L32: 0.4 | M32: 1.5 | N32: 0.4 | O32: 0.5
K33: Dec | L33: 0.4 | M33: 1.6 | N33: 0.4 | O33: 0.5
K34: Annual | L34: =AVERAGE(L22:L33) -> 0.3416666667 | M34: =MAX(M22:M33) -> 6.2 | N34: =AVERAGE(N22:N33) -> 0.3416666667 | O34: =MAX(O22:O33) -> 0.6
J36: =+A6 -> 2022 | K36: mg/Nm3 | L36: Monthly 1/2 hourly mean | M36: Monthly 1/2 hourly maximum | N36: Monthly daily mean | O36: Monthly daily maximum
J37: A3 | K37: Jan | L37: 0.4 | M37: 2.3 | N37: 0.4 | O37: 0.6
K38: Feb | L38: 0.4 | M38: 2.9 | N38: 0.4 | O38: 0.6
K39: Mar | L39: 0.4 | M39: 2.1 | N39: 0.4 | O39: 0.5
K40: Apr | L40: 0.5 | M40: 1.6 | N40: 0.5 | O40: 0.6
K41: May | L41: 0.5 | M41: 4.9 | N41: 0.5 | O41: 0.7
K42: Jun | L42: 0.5 | M42: 1.8 | N42: 0.5 | O42: 0.6
K43: Jul | L43: 0.5 | M43: 1.6 | N43: 0.5 | O43: 0.6
K44: Aug | L44: 0.5 | M44: 2.1 | N44: 0.5 | O44: 0.8
K45: Sep | L45: 0.5 | M45: 1.7 | N45: 0.5 | O45: 0.6
K46: Oct | L46: 0.5 | M46: 3.2 | N46: 0.5 | O46: 0.7
K47: Nov | L47: 0.5 | M47: 1.7 | N47: 0.5 | O47: 0.7
A48: Comments : | K48: Dec | L48: 0.5 | M48: 4.6 | N48: 0.5 | O48: 0.7
A49: An indicated ELV value of zero in the table above means that no ammonia limit is set in the permit. | K49: Annual | L49: =AVERAGE(L37:L48) -> 0.475 | M49: =MAX(M37:M48) -> 4.9 | N49: =AVERAGE(N37:N48) -> 0.475 | O49: =MAX(O37:O48) -> 0.8
